[Event "Nové Hrady - Rapid A"]
[Site "Nové Hrady, Czech Republic"]
[Date "2023.08.12"]
[Round "7.8"]
[White "Slabý, Matěj"]
[Black "Slabý, Martin"]
[Result "1-0"]
[TimeControl "2x20min+5s"]
[WhiteFideId "23734876"]
[BlackFideId "23713593"]
[WhiteElo "1944"]
[BlackElo "1309"]

1. d4 {[%clk 00:20:00]} {[%emt 00:00:10]} Nf6 {[%clk 00:20:07]} {[%emt
00:00:03]} 2. Nf3 {[%clk 00:20:01]} {[%emt 00:00:04]} e6 {[%clk 00:20:03]}
{[%emt 00:00:10]} 3. e3 {[%clk 00:20:03]} {[%emt 00:00:02]} Nc6 {[%clk
00:19:21]} {[%emt 00:00:48]} 4. Bd3 {[%clk 00:19:54]} {[%emt 00:00:13]} Bb4+
{[%clk 00:18:16]} {[%emt 00:01:10]} 5. c3 {[%clk 00:19:56]} {[%emt 00:00:03]}
Ba5 {[%clk 00:18:17]} {[%emt 00:00:05]} 6. O-O {[%clk 00:19:54]} {[%emt
00:00:06]} a6 {[%clk 00:18:06]} {[%emt 00:00:16]} 7. e4 {[%clk 00:19:55]}
{[%emt 00:00:04]} d6 {[%clk 00:17:42]} {[%emt 00:00:30]} 8. Bg5 {[%clk
00:19:45]} {[%emt 00:00:14]} h6 {[%clk 00:17:27]} {[%emt 00:00:20]} 9. Bh4
{[%clk 00:19:47]} {[%emt 00:00:03]} g5 {[%clk 00:17:15]} {[%emt 00:00:18]} 10.
Nxg5 {[%clk 00:18:55]} {[%emt 00:00:56]} hxg5 {[%clk 00:16:40]} {[%emt
00:00:40]} 11. Bxg5 {[%clk 00:18:57]} {[%emt 00:00:02]} e5 {[%clk 00:14:52]}
{[%emt 00:01:55]} 12. Qf3 {[%clk 00:18:57]} {[%emt 00:00:04]} Bg4 {[%clk
00:14:09]} {[%emt 00:00:48]} 13. Qxf6 {[%clk 00:18:49]} {[%emt 00:00:12]} Qxf6
{[%clk 00:13:44]} {[%emt 00:00:31]} 14. Bxf6 {[%clk 00:18:52]} {[%emt
00:00:02]} Rg8 {[%clk 00:13:42]} {[%emt 00:00:07]} 15. Re1 {[%clk 00:15:16]}
{[%emt 00:03:41]} Rg6 {[%clk 00:12:56]} {[%emt 00:00:51]} 16. Bh4 {[%clk
00:14:21]} {[%emt 00:01:00]} exd4 {[%clk 00:12:27]} {[%emt 00:00:35]} 17. e5
{[%clk 00:13:33]} {[%emt 00:00:52]} Kd7 {[%clk 00:11:54]} {[%emt 00:00:38]} 18.
Bxg6 {[%clk 00:13:31]} {[%emt 00:00:07]} fxg6 {[%clk 00:11:45]} {[%emt
00:00:14]} 19. h3 {[%clk 00:13:31]} {[%emt 00:00:05]} Be6 {[%clk 00:11:05]}
{[%emt 00:00:45]} 20. exd6 {[%clk 00:13:32]} {[%emt 00:00:04]} cxd6 {[%clk
00:10:42]} {[%emt 00:00:29]} 21. Rd1 {[%clk 00:13:27]} {[%emt 00:00:09]} Bb6
{[%clk 00:10:29]} {[%emt 00:00:18]} 22. Bg3 {[%clk 00:13:14]} {[%emt 00:00:19]}
Rf8 {[%clk 00:09:51]} {[%emt 00:00:42]} 23. cxd4 {[%clk 00:12:26]} {[%emt
00:00:53]} Nxd4 {[%clk 00:08:52]} {[%emt 00:01:05]} 24. Nc3 {[%clk 00:12:28]}
{[%emt 00:00:03]} Bc5 {[%clk 00:08:15]} {[%emt 00:00:42]} 25. b4 {[%clk
00:12:18]} {[%emt 00:00:15]} Bxb4 {[%clk 00:07:43]} {[%emt 00:00:37]} 26. Rxd4
{[%clk 00:12:20]} {[%emt 00:00:02]} Bxc3 {[%clk 00:07:25]} {[%emt 00:00:22]} 27.
Rxd6+ {[%clk 00:12:23]} {[%emt 00:00:03]} Ke7 {[%clk 00:06:57]} {[%emt
00:00:34]} 28. Rc1 {[%clk 00:11:54]} {[%emt 00:00:33]} Ba5 {[%clk 00:06:17]}
{[%emt 00:00:45]} 29. Rd4 {[%clk 00:11:46]} {[%emt 00:00:14]} Bb6 {[%clk
00:05:34]} {[%emt 00:00:48]} 30. Bd6+ {[%clk 00:11:48]} {[%emt 00:00:03]} Ke8
{[%clk 00:05:03]} {[%emt 00:00:35]} 31. Bxf8 {[%clk 00:11:51]} {[%emt
00:00:02]} Bxd4 {[%clk 00:05:01]} {[%emt 00:00:08]} 32. Bc5 {[%clk 00:11:54]}
{[%emt 00:00:01]} Bg7 {[%clk 00:04:06]} {[%emt 00:01:00]} 33. a3 {[%clk
00:11:54]} {[%emt 00:00:05]} Bb2 {[%clk 00:03:57]} {[%emt 00:00:14]} 34. Rb1
{[%clk 00:11:56]} {[%emt 00:00:02]} b6 {[%clk 00:03:44]} {[%emt 00:00:20]} 35.
Bxb6 {[%clk 00:11:53]} {[%emt 00:00:07]} Bxa3 {[%clk 00:03:30]} {[%emt
00:00:19]} 36. Ra1 {[%clk 00:11:57]} Bd6 {[%clk 00:03:07]} {[%emt 00:00:30]} 37.
Rxa6 {[%clk 00:11:59]} {[%emt 00:00:02]} Kd7 {[%clk 00:03:00]} {[%emt
00:00:12]} 38. Ra7+ {[%clk 00:12:00]} {[%emt 00:00:04]} Kc6 {[%clk 00:02:59]}
{[%emt 00:00:07]} 39. Be3 {[%clk 00:12:04]} {[%emt 00:00:01]} Bc7 {[%clk
00:02:16]} {[%emt 00:00:47]} 40. Ra6+ {[%clk 00:12:05]} {[%emt 00:00:04]} Kd7
{[%clk 00:02:16]} {[%emt 00:00:05]} 41. f3 {[%clk 00:12:04]} {[%emt 00:00:07]}
Bf7 {[%clk 00:02:05]} {[%emt 00:00:16]} 42. Ra7 {[%clk 00:12:03]} {[%emt
00:00:05]} Kc6 {[%clk 00:01:56]} {[%emt 00:00:14]} 43. Kf2 {[%clk 00:12:03]}
{[%emt 00:00:05]} Bc4 {[%clk 00:01:28]} {[%emt 00:00:33]} 44. g4 {[%clk
00:12:05]} {[%emt 00:00:03]} Bd3 {[%clk 00:00:55]} {[%emt 00:00:38]} 45. h4
{[%clk 00:12:03]} {[%emt 00:00:07]} Bb8 {[%clk 00:00:44]} {[%emt 00:00:17]} 46.
Rg7 {[%clk 00:12:03]} {[%emt 00:00:03]} Be5 {[%clk 00:00:37]} {[%emt 00:00:13]}
47. Rg8 {[%clk 00:12:03]} {[%emt 00:00:05]} Bc4 {[%clk 00:00:33]} {[%emt
00:00:09]} 48. Rxg6+ {[%clk 00:12:07]} Kd5 {[%clk 00:00:23]} {[%emt 00:00:16]}
49. h5 {[%emt 00:00:03]} 1-0